fUSD/lending_fUSD_20260531
["ID","MTS","AMOUNT","RATE_DAILY","PERIOD"]
[423553288,1780217432000,-500.0,0.00013703,2]
[423553274,1780217432000,-500.0,0.00013703,2]
[423553290,1780217432000,-500.0,0.00013703,2]
[423553300,1780217432000,-808.09,0.00013703,2]
[423553302,1780217432000,-808.09,0.00013703,2]
[423553298,1780217432000,-808.09,0.00013703,2]
[423553304,1780217432000,-808.09,0.00013703,2]
[423553244,1780217432000,-500.0,0.00013703,2]
[423553286,1780217432000,-500.0,0.00013703,2]
[423553242,1780217432000,-565.35437327,0.00013703,2]
[423553206,1780217432000,-500.0,0.00013703,2]
[423553255,1780217432000,-500.0,0.00013703,2]
[423553306,1780217432000,-872.09,0.00013703,2]
[423553181,1780217432000,-301.75155404,0.00013699,2]
[423553184,1780217432000,-163.57,0.00013701,2]
[423553186,1780217432000,-571.82,0.00013702,2]
[423553188,1780217432000,-500.0,0.00013703,2]
[423553190,1780217432000,-500.0,0.00013703,2]
[423553194,1780217432000,-625.7470238,0.00013703,2]
[423553196,1780217432000,-502.71306346,0.00013703,2]
[423553198,1780217432000,-500.0,0.00013703,2]
[423553200,1780217432000,-500.0,0.00013703,2]
[423553192,1780217432000,-500.0,0.00013703,2]
[423553211,1780217432000,-500.0,0.00013703,2]
[423553208,1780217432000,-500.0,0.00013703,2]
[423553253,1780217432000,-500.0,0.00013703,2]
[423553213,1780217432000,-500.0,0.00013703,2]
[423553215,1780217432000,-500.0,0.00013703,2]
[423553217,1780217432000,-500.0,0.00013703,2]
[423553228,1780217432000,-500.0,0.00013703,2]
[423553230,1780217432000,-500.0,0.00013703,2]
[423553234,1780217432000,-504.85227868,0.00013703,2]
[423553232,1780217432000,-500.0,0.00013703,2]
[423553224,1780217432000,-500.0,0.00013703,2]
[423553222,1780217432000,-500.0,0.00013703,2]
[423553219,1780217432000,-500.0,0.00013703,2]
[423553226,1780217432000,-500.0,0.00013703,2]
[423553239,1780217432000,-500.0,0.00013703,2]
[423553237,1780217432000,-500.0,0.00013703,2]
[423553240,1780217432000,-500.0,0.00013703,2]
[423553204,1780217432000,-501.39680431,0.00013703,2]
[423553308,1780217432000,-872.09,0.00013703,2]
[423553202,1780217432000,-500.0,0.00013703,2]
[423553296,1780217432000,-808.09,0.00013703,2]
[423553365,1780217432000,-571.82,0.00014371,2]
[423553377,1780217432000,-300.0,0.00014662,2]
[423553375,1780217432000,-224.89854366,0.00014648,2]
[423553371,1780217432000,-300.0,0.000146,5]
[423553369,1780217432000,-255.0,0.00014543,2]
[423553373,1780217432000,-250.0,0.00014648,2]
[423553381,1780217432000,-300.0,0.00014662,2]
[423553379,1780217432000,-300.0,0.00014662,2]
[423553383,1780217432000,-300.0,0.00014662,2]
[423553385,1780217432000,-300.0,0.00014662,2]
[423553395,1780217432000,-4023.02807,0.000147,2]
[423553396,1780217432000,-571.82,0.00014705,2]
[423553400,1780217432000,-500.0,0.00014744,2]
[423553366,1780217432000,-166.66,0.00014384,2]
[423553393,1780217432000,-700.0,0.000147,5]
[423553398,1780217432000,-500.0,0.00014744,2]
[423553399,1780217432000,-500.0,0.00014744,2]
[423553388,1780217432000,-200.0,0.00014662,2]
[423553405,1780217432000,-5000.0,0.000148,2]
[423553397,1780217432000,-500.0,0.00014744,2]
[423553391,1780217432000,-200.0,0.00014662,2]
[423553394,1780217432000,-4065.04446348,0.000147,2]
[423553402,1780217432000,-808.09,0.00014744,2]
[423553401,1780217432000,-505.87527888,0.00014744,2]
[423553403,1780217432000,-872.09,0.00014744,2]
[423553404,1780217432000,-1116.0,0.00014771,2]
[423553406,1780217432000,-11752.19753336,0.000148,2]
[423553292,1780217432000,-500.0,0.00013703,2]
[423553392,1780217432000,-200.0,0.00014662,2]
[423553368,1780217432000,-304.37,0.00014497,2]
[423553389,1780217432000,-200.0,0.00014662,2]
[423553364,1780217432000,-350.0,0.00014307,2]
[423553367,1780217432000,-350.0,0.00014403,2]
[423553310,1780217432000,-872.09,0.00013703,2]
[423553312,1780217432000,-872.09,0.00013703,2]
[423553314,1780217432000,-872.09,0.00013703,2]
[423553320,1780217432000,-500.0,0.00013703,2]
[423553324,1780217432000,-508.41266581,0.00013703,2]
[423553322,1780217432000,-500.0,0.00013703,2]
[423553316,1780217432000,-872.09,0.00013703,2]
[423553332,1780217432000,-166.66,0.00013836,2]
[423553330,1780217432000,-150.0,0.00013771,2]
[423553326,1780217432000,-500.0,0.00013703,2]
[423553336,1780217432000,-500.0,0.00013968,2]
[423553338,1780217432000,-500.0,0.00013968,2]
[423553328,1780217432000,-277.68664327,0.00013704,2]
[423553318,1780217432000,-500.0,0.00013703,2]
[423553334,1780217432000,-500.0,0.00013968,2]
[423553359,1780217432000,-209.17060647,0.00014052,2]
[423553340,1780217432000,-500.0,0.00013968,2]
[423553361,1780217432000,-166.66,0.00014247,2]
[423553363,1780217432000,-337.67,0.00014304,2]
[423553348,1780217432000,-166.66,0.00013973,2]
[423553350,1780217432000,-500.0,0.00013977,2]
[423553346,1780217432000,-872.09,0.00013968,2]
[423553360,1780217432000,-166.66,0.0001411,2]
[423553355,1780217432000,-250.0,0.00014,2]
[423553352,1780217432000,-14090.15774791,0.0001399,2]
[423553344,1780217432000,-808.09,0.00013968,2]
[423553357,1780217432000,-571.82,0.00014037,2]
[423553362,1780217432000,-555.70477392,0.00014276,2]
[423553342,1780217432000,-500.0,0.00013968,2]
[423553428,1780217433000,-500.0,0.00014899,2]
[423553430,1780217433000,-178.80567996,0.00014899,2]
[423553440,1780217433000,-640.19,0.00014899,2]
[423553429,1780217433000,-500.0,0.00014899,2]
[423553435,1780217433000,-500.0,0.00014899,2]
[423553433,1780217433000,-500.0,0.00014899,2]
[423553432,1780217433000,-500.0,0.00014899,2]
[423553434,1780217433000,-500.0,0.00014899,2]
[423553438,1780217433000,-640.19,0.00014899,2]
[423553443,1780217433000,-500.0,0.00014899,2]
[423553448,1780217433000,-500.0,0.00014899,2]
[423553441,1780217433000,-500.0,0.00014899,2]
[423553442,1780217433000,-500.0,0.00014899,2]
[423553446,1780217433000,-500.0,0.00014899,2]
[423553439,1780217433000,-640.19,0.00014899,2]
[423553445,1780217433000,-500.0,0.00014899,2]
[423553447,1780217433000,-500.0,0.00014899,2]
[423553460,1780217433000,-500.0,0.00014899,2]
[423553431,1780217433000,-156.38980755,0.00014899,2]
[423553450,1780217433000,-500.0,0.00014899,2]
[423553444,1780217433000,-500.0,0.00014899,2]
[423553427,1780217433000,-500.0,0.00014899,2]
[423553413,1780217433000,-169.23479,0.0001485,2]
[423553437,1780217433000,-640.19,0.00014899,2]
[423553449,1780217433000,-500.0,0.00014899,2]
[423553410,1780217433000,-350.0,0.00014803,2]
[423553411,1780217433000,-8672.54368737,0.00014818,2]
[423553412,1780217433000,-153.80363737,0.0001485,2]
[423553409,1780217433000,-1000.0,0.000148,5]
[423553407,1780217433000,-13202.95225079,0.000148,2]
[423553408,1780217433000,-180.55031973,0.000148,2]
[423553414,1780217433000,-169.2348,0.0001485,2]
[423553415,1780217433000,-336.484,0.00014856,2]
[423553425,1780217433000,-512.43,0.00014899,2]
[423553417,1780217433000,-200.0,0.0001488,2]
[423553416,1780217433000,-169.2348,0.0001486,2]
[423553418,1780217433000,-4917.82941975,0.00014891,2]
[423553420,1780217433000,-413.61503396,0.00014891,2]
[423553419,1780217433000,-10259.85300746,0.00014891,2]
[423553422,1780217433000,-151.0,0.00014897,2]
[423553421,1780217433000,-181.03128884,0.00014895,2]
[423553423,1780217433000,-151.0,0.00014897,2]
[423553426,1780217433000,-512.43,0.00014899,2]
[423553436,1780217433000,-460.58248487,0.00014899,2]
[423553424,1780217433000,-512.43,0.00014899,2]
[423553452,1780217433000,-500.0,0.00014899,2]
[423553481,1780217433000,-235.0,0.000149,2]
[423553455,1780217433000,-500.0,0.00014899,2]
[423553482,1780217433000,-350.0,0.00014909,2]
[423553480,1780217433000,-263.31496012,0.000149,2]
[423553484,1780217433000,-1010.3798458,0.0001491,5]
[423553483,1780217433000,-1492.6201542,0.0001491,5]
[423553478,1780217433000,-600.0,0.000149,2]
[423553489,1780217433000,-1546.0,0.00014975,2]
[423553498,1780217433000,-500.0,0.00014994,2]
[423553491,1780217433000,-250.0,0.00014975,2]
[423553486,1780217433000,-8672.54368737,0.00014913,2]
[423553479,1780217433000,-2448.39133378,0.000149,2]
[423553492,1780217433000,-152.0,0.00014985,2]
[423553497,1780217433000,-500.0,0.00014994,2]
[423553488,1780217433000,-154.0,0.00014967,2]
[423553496,1780217433000,-500.0,0.00014994,2]
[423553499,1780217433000,-3136.0,0.00014995,5]
[423553487,1780217433000,-898.40689333,0.00014925,2]
[423553490,1780217433000,-1546.0,0.00014975,2]
[423553494,1780217433000,-159.23480163,0.00014985,2]
[423553493,1780217433000,-152.0,0.00014985,2]
[423553500,1780217433000,-115193.05188477,0.00014995,2]
[423553495,1780217433000,-640.19,0.00014994,2]
[423553451,1780217433000,-500.0,0.00014899,2]
[423553474,1780217433000,-591048.73381405,0.000149,2]
[423553476,1780217433000,-360.9523867,0.000149,2]
[423553459,1780217433000,-500.0,0.00014899,2]
[423553454,1780217433000,-500.0,0.00014899,2]
[423553453,1780217433000,-500.0,0.00014899,2]
[423553457,1780217433000,-496.46,0.00014899,2]
[423553456,1780217433000,-500.0,0.00014899,2]
[423553458,1780217433000,-502.19295882,0.00014899,2]
[423553461,1780217433000,-500.0,0.00014899,2]
[423553465,1780217433000,-303.83318809,0.00014899,2]
[423553464,1780217433000,-500.0,0.00014899,4]
[423553463,1780217433000,-500.0,0.00014899,3]
[423553477,1780217433000,-1400.0,0.000149,5]
[423553473,1780217433000,-500.0,0.00014899,2]
[423553462,1780217433000,-500.0,0.00014899,2]
[423553468,1780217433000,-1278.65,0.00014899,2]
[423553470,1780217433000,-500.0,0.00014899,2]
[423553466,1780217433000,-235.0,0.00014899,2]
[423553467,1780217433000,-1278.65,0.00014899,2]
[423553471,1780217433000,-500.0,0.00014899,2]
[423553469,1780217433000,-1278.65,0.00014899,2]
[423553475,1780217433000,-170742.37498595,0.000149,2]
[423553485,1780217433000,-8672.54368737,0.0001491,2]
[423553472,1780217433000,-500.0,0.00014899,2]
[423553503,1780217434000,-765.71157577,0.00014995,2]
[423553502,1780217434000,-797.59445327,0.00014995,2]
[423553501,1780217434000,-112541.12427313,0.00014995,2]
[423553505,1780217434000,-638.34053726,0.00014995,2]
[423553504,1780217434000,-292.97700002,0.00014995,2]
[423553506,1780217434000,-378.71365915,0.00014995,2]
[423553510,1780217437000,-2738.07406363,0.00014995,2]
[423553508,1780217437000,-1943.5369621,0.000147,2]
[423553509,1780217437000,-2710.02964232,0.000147,2]
[423553514,1780217437000,-722.09358592,0.00014995,2]
[423553513,1780217437000,-302.97385118,0.00014995,2]
[423553507,1780217437000,-1161.0645719,0.000147,2]
[423553512,1780217437000,-11396.30973095,0.00014995,2]
[423553511,1780217437000,-4758.968982,0.00014995,2]
[423553532,1780217439000,-300.0,0.00014995,2]
[423553533,1780217440000,-295.644,0.000147,2]
[423553687,1780217445000,-3564.09534614,0.00014995,2]
[423553686,1780217445000,-1708.13842822,0.000147,2]
[423553688,1780217446000,-3862.45361311,0.00014995,2]
[423553692,1780217446000,-18561.90813962,0.00014995,2]
[423553691,1780217446000,-419.27752317,0.00014995,2]
[423553689,1780217446000,-6691.212817,0.00014995,2]
[423553690,1780217446000,-48997.93466536,0.00014995,2]
[423554097,1780217457000,668.18,0.00027516,120]
[423554098,1780217471000,152.0,0.00029161,120]
[423554104,1780217601000,500.0,0.00028972,120]
[423554105,1780217664000,150.26183223,0.00030137,120]
[423554118,1780218065000,1000.0,0.0003,120]
[423554119,1780218151000,319.24,0.00027397,120]
[423554120,1780218239000,-184.55,0.00012149,2]
[423554121,1780218254000,-500.0,0.00012196,2]
[423554122,1780218293000,-184.55,0.00012216,2]
[423554123,1780218308000,-170.86,0.00012217,2]
[423554124,1780218309000,428.81,0.00030082,120]
[423554125,1780218324000,2002.25610322,0.00030137,120]
[423554126,1780218346000,-200.0,0.00012217,2]
[423554127,1780218364000,-547.02,0.00012252,2]
[423554128,1780218399000,-184.55,0.00012284,2]
[423554130,1780218415000,-278.81,0.00012329,2]
[423554129,1780218415000,-150.0,0.00012272,2]
[423554131,1780218453000,-150.0,0.00012329,2]
[423554132,1780218468000,-184.55,0.00012351,2]
[423554133,1780218506000,-184.55,0.00012418,2]
[423554134,1780218540000,1000.0,0.00030136,120]
[423554135,1780218560000,-184.55,0.00012486,2]
[423554136,1780218613000,-184.55,0.00012553,2]
[423554138,1780218631000,-184.55,0.0001262,2]
[423554140,1780218631000,-40.90000001,0.00012723,2]
[423554139,1780218631000,-184.55,0.00012688,2]
[423554141,1780218631000,-125.91999999,0.00012723,2]
[423554142,1780218631000,-184.55,0.00012755,2]
[423554144,1780218631000,-184.55,0.00012822,2]
[423554145,1780218631000,-1000.0,0.0001284,2]
[423554146,1780218631000,-425.4413426,0.00012869,2]
[423554147,1780218631000,-31582.6964613,0.00012431,2]
[423554148,1780218631000,-29239.4935387,0.00012431,2]
[423554152,1780218631000,-184.55,0.00013024,2]
[423554143,1780218631000,-484.65,0.00012815,2]
[423554155,1780218631000,-184.55,0.00013092,2]
[423554149,1780218631000,-3829.2486574,0.00012869,2]
[423554162,1780218631000,-166.82,0.00013423,2]
[423554160,1780218631000,-184.55,0.00013361,2]
[423554158,1780218631000,-184.55,0.00013226,2]
[423554157,1780218631000,-184.55,0.00013159,2]
[423554159,1780218631000,-184.55,0.00013293,2]
[423554154,1780218631000,-1200.0,0.00013091,2]
[423554153,1780218631000,-500.0,0.00013048,2]
[423554151,1780218631000,-184.55,0.00012957,2]
[423554150,1780218631000,-184.55,0.0001289,2]
[423554156,1780218631000,-812.46,0.00013122,2]
[423554179,1780218632000,-5000.0,0.00013503,2]
[423554190,1780218632000,-500.0,0.00013562,2]
[423554185,1780218632000,-902.75159865,0.00013554,2]
[423554188,1780218632000,-20571.63609134,0.00013554,2]
[423554181,1780218632000,-409.38683017,0.00013537,2]
[423554164,1780218632000,-184.55,0.00013428,2]
[423554175,1780218632000,-150.0,0.00013503,2]
[423554171,1780218632000,-150.0,0.00013488,2]
[423554173,1780218632000,-1547.8854,0.00013496,2]
[423554166,1780218632000,-334.2080753,0.00013478,2]
[423554168,1780218632000,-150.0,0.00013488,2]
[423554177,1780218632000,-5357.0918,0.00013503,2]
[423554192,1780218632000,-250.0,0.00013589,2]
[423554183,1780218632000,-180.04204682,0.00013554,2]
[423554191,1780218632000,-150.0,0.00013571,2]
[423554186,1780218632000,-14509.54763294,0.00013554,2]
[423554207,1780218632000,-666.0,0.00013602,2]
[423554210,1780218632000,-600.0,0.00013603,2]
[423554209,1780218632000,-1606.0,0.00013603,5]
[423554203,1780218632000,-300.0,0.00013602,2]
[423554205,1780218632000,-308.12090886,0.00013602,2]
[423554212,1780218632000,-268670.90945944,0.00013603,2]
[423554199,1780218632000,-311.26784696,0.00013602,2]
[423554195,1780218632000,-719.68399737,0.00013596,2]
[423554201,1780218632000,-216.17053622,0.00013602,2]
[423554194,1780218632000,-1112.70232125,0.00013595,2]
[423554193,1780218632000,-538.89723545,0.00013593,2]
[423554197,1780218632000,-169.465949,0.000136,2]
[423554220,1780218637000,-1495.54,0.00013696,2]
[423554215,1780218637000,-4319.7751085,0.00013398,2]
[423554216,1780218637000,-5000.0,0.00013503,2]
[423554217,1780218637000,-473784.16477291,0.00013603,2]
[423554219,1780218637000,-150.0,0.00013654,2]
[423554218,1780218637000,-757544.92576765,0.00013603,2]
[423554221,1780218637000,-527.65,0.00013698,2]
[423554222,1780218637000,-527.65,0.00013698,2]
[423554223,1780218637000,-527.65,0.00013698,2]
[423554226,1780218637000,-527.65,0.00013698,2]
[423554225,1780218637000,-527.65,0.00013698,2]
[423554224,1780218637000,-527.65,0.00013698,2]
[423554227,1780218637000,-500.0,0.00013698,2]
[423554270,1780218638000,-500.0,0.00013698,2]
[423554268,1780218638000,-500.0,0.00013698,2]
[423554264,1780218638000,-500.0,0.00013698,2]
[423554267,1780218638000,-500.0,0.00013698,2]
[423554266,1780218638000,-500.0,0.00013698,2]
[423554262,1780218638000,-500.0,0.00013698,2]
[423554261,1780218638000,-500.0,0.00013698,2]
[423554258,1780218638000,-1200.83,0.00013698,2]
[423554259,1780218638000,-1200.83,0.00013698,2]
[423554255,1780218638000,-1200.83,0.00013698,2]
[423554265,1780218638000,-500.0,0.00013698,2]
[423554260,1780218638000,-571.58866461,0.00013698,2]
[423554276,1780218638000,-151.0,0.00013699,2]
[423554263,1780218638000,-500.0,0.00013698,2]
[423554271,1780218638000,-500.0,0.00013698,2]
[423554277,1780218638000,-151.0,0.00013699,2]
[423554272,1780218638000,-500.0,0.00013698,2]
[423554275,1780218638000,-151.0,0.00013699,2]
[423554281,1780218638000,-151.0,0.00013699,2]
[423554274,1780218638000,-200.0,0.00013699,2]
[423554273,1780218638000,-166.66,0.00013699,2]
[423554278,1780218638000,-151.0,0.00013699,2]
[423554279,1780218638000,-151.0,0.00013699,2]
[423554282,1780218638000,-151.0,0.00013699,2]
[423554254,1780218638000,-1200.83,0.00013698,2]
[423554269,1780218638000,-500.0,0.00013698,2]
[423554251,1780218638000,-500.0,0.00013698,2]
[423554241,1780218638000,-500.0,0.00013698,2]
[423554253,1780218638000,-500.0,0.00013698,2]
[423554280,1780218638000,-151.0,0.00013699,2]
[423554228,1780218638000,-500.0,0.00013698,2]
[423554229,1780218638000,-500.0,0.00013698,2]
[423554231,1780218638000,-500.0,0.00013698,2]
[423554232,1780218638000,-500.0,0.00013698,2]
[423554234,1780218638000,-500.0,0.00013698,2]
[423554230,1780218638000,-500.0,0.00013698,2]
[423554236,1780218638000,-511.96171548,0.00013698,2]
[423554235,1780218638000,-500.0,0.00013698,2]
[423554237,1780218638000,-500.0,0.00013698,2]
[423554233,1780218638000,-500.0,0.00013698,2]
[423554240,1780218638000,-500.0,0.00013698,2]
[423554238,1780218638000,-500.0,0.00013698,2]
[423554239,1780218638000,-500.0,0.00013698,2]
[423554242,1780218638000,-500.0,0.00013698,2]
[423554244,1780218638000,-500.0,0.00013698,2]
[423554243,1780218638000,-500.0,0.00013698,2]
[423554245,1780218638000,-500.0,0.00013698,2]
[423554247,1780218638000,-500.0,0.00013698,2]
[423554246,1780218638000,-500.0,0.00013698,2]
[423554248,1780218638000,-500.0,0.00013698,2]
[423554249,1780218638000,-500.0,0.00013698,2]
[423554250,1780218638000,-321.46293792,0.00013698,2]
[423554257,1780218638000,-1200.83,0.00013698,2]
[423554252,1780218638000,-500.0,0.00013698,2]
[423554256,1780218638000,-1200.83,0.00013698,2]
[423554283,1780218638000,-151.0,0.00013699,2]
[423554332,1780218638000,-500.0,0.00013699,2]
[423554284,1780218638000,-151.0,0.00013699,2]
[423554310,1780218638000,-500.0,0.00013699,2]
[423554318,1780218638000,-500.0,0.00013699,2]
[423554320,1780218638000,-500.0,0.00013699,2]
[423554319,1780218638000,-500.0,0.00013699,2]
[423554324,1780218638000,-500.0,0.00013699,2]
[423554322,1780218638000,-500.0,0.00013699,2]
[423554317,1780218638000,-500.0,0.00013699,2]
[423554323,1780218638000,-500.0,0.00013699,2]
[423554326,1780218638000,-500.0,0.00013699,2]
[423554327,1780218638000,-500.0,0.00013699,2]
[423554321,1780218638000,-500.0,0.00013699,2]
[423554325,1780218638000,-500.0,0.00013699,2]
[423554316,1780218638000,-500.0,0.00013699,2]
[423554337,1780218638000,-2500.0,0.00013728,2]
[423554336,1780218638000,-20571.63609126,0.00013704,2]
[423554328,1780218638000,-500.0,0.00013699,2]
[423554329,1780218638000,-500.0,0.00013699,2]
[423554330,1780218638000,-500.0,0.00013699,2]
[423554333,1780218638000,-447.68828989,0.00013699,2]
[423554338,1780218638000,-300.0,0.00013734,2]
[423554340,1780218638000,-300.0,0.00013734,2]
[423554331,1780218638000,-500.0,0.00013699,2]
[423554339,1780218638000,-300.0,0.00013734,2]
[423554334,1780218638000,-500.0,0.00013699,2]
[423554287,1780218638000,-500.0,0.00013699,2]
[423554309,1780218638000,-500.0,0.00013699,2]
[423554308,1780218638000,-500.0,0.00013699,2]
[423554335,1780218638000,-600.0,0.000137,5]
[423554311,1780218638000,-500.0,0.00013699,2]
[423554312,1780218638000,-500.0,0.00013699,2]
[423554285,1780218638000,-162.917968,0.00013699,2]
[423554286,1780218638000,-500.0,0.00013699,2]
[423554289,1780218638000,-500.0,0.00013699,2]
[423554290,1780218638000,-500.0,0.00013699,2]
[423554288,1780218638000,-500.0,0.00013699,2]
[423554292,1780218638000,-500.0,0.00013699,2]
[423554294,1780218638000,-500.0,0.00013699,2]
[423554303,1780218638000,-500.0,0.00013699,2]
[423554295,1780218638000,-500.0,0.00013699,2]
[423554298,1780218638000,-500.0,0.00013699,2]
[423554293,1780218638000,-500.0,0.00013699,2]
[423554291,1780218638000,-500.0,0.00013699,2]
[423554300,1780218638000,-500.0,0.00013699,2]
[423554297,1780218638000,-500.0,0.00013699,2]
[423554314,1780218638000,-500.0,0.00013699,2]
[423554304,1780218638000,-500.0,0.00013699,2]
[423554306,1780218638000,-500.0,0.00013699,2]
[423554315,1780218638000,-500.0,0.00013699,2]
[423554313,1780218638000,-500.0,0.00013699,2]
[423554301,1780218638000,-500.0,0.00013699,2]
[423554299,1780218638000,-500.0,0.00013699,2]
[423554302,1780218638000,-500.0,0.00013699,2]
[423554296,1780218638000,-500.0,0.00013699,2]
[423554305,1780218638000,-500.0,0.00013699,2]
[423554307,1780218638000,-500.0,0.00013699,2]
[423554375,1780218639000,-20571.63609126,0.00014302,2]
[423554370,1780218639000,-300.0,0.00014175,2]
[423554372,1780218639000,-150.0,0.00014237,2]
[423554364,1780218639000,-150.0,0.0001407,2]
[423554374,1780218639000,-166.66,0.00014247,2]
[423554366,1780218639000,-166.66,0.0001411,2]
[423554367,1780218639000,-166.82,0.00014123,2]
[423554373,1780218639000,-545.94678562,0.00014244,2]
[423554368,1780218639000,-20571.63609126,0.00014152,2]
[423554371,1780218639000,-668.18,0.00014201,2]
[423554384,1780218639000,-150.0,0.00014404,2]
[423554377,1780218639000,-3028.576356,0.00014318,2]
[423554386,1780218639000,-350.0,0.00014444,2]
[423554385,1780218639000,-350.0,0.00014409,2]
[423554383,1780218639000,-1680.0,0.000144,2]
[423554376,1780218639000,-1045.245703,0.00014318,2]
[423554378,1780218639000,-300.0,0.00014319,2]
[423554382,1780218639000,-166.31,0.00014395,2]
[423554365,1780218639000,-3750.939689,0.00014072,2]
[423554380,1780218639000,-2001.0,0.00014359,5]
[423554369,1780218639000,-150.0,0.00014154,2]
[423554356,1780218639000,-300.0,0.00013885,2]
[423554346,1780218639000,-200.0,0.00013734,2]
[423554362,1780218639000,-209.17060647,0.00014016,2]
[423554379,1780218639000,-150.0,0.0001432,2]
[423554341,1780218639000,-300.0,0.00013734,2]
[423554342,1780218639000,-327.68260529,0.00013734,2]
[423554352,1780218639000,-166.66,0.00013836,2]
[423554343,1780218639000,-200.0,0.00013734,2]
[423554345,1780218639000,-200.0,0.00013734,2]
[423554344,1780218639000,-200.0,0.00013734,2]
[423554348,1780218639000,-300.0,0.0001374,2]
[423554349,1780218639000,-170.86,0.00013744,2]
[423554363,1780218639000,-300.0,0.0001403,2]
[423554351,1780218639000,-150.0,0.00013821,2]
[423554350,1780218639000,-1300.0,0.000138,5]
[423554361,1780218639000,-20571.63609126,0.00014003,2]
[423554358,1780218639000,-150.0,0.00013904,2]
[423554355,1780218639000,-2000.0,0.00013882,2]
[423554360,1780218639000,-150.0,0.00013987,2]
[423554354,1780218639000,-20571.63609126,0.00013853,2]
[423554357,1780218639000,-2000.0,0.000139,5]
[423554359,1780218639000,-166.66,0.00013973,2]
[423554353,1780218639000,-300.0,0.00013851,2]
[423554347,1780218639000,-150.0,0.00013737,2]
[423554381,1780218639000,-166.66,0.00014384,2]
[423554392,1780218639000,-600.48678497,0.00014558,2]
[423554393,1780218639000,-1698.41866998,0.00014566,2]
[423554415,1780218639000,-18492.2330029,0.00014755,2]
[423554416,1780218639000,-386.0,0.00014763,2]
[423554412,1780218639000,-410.0,0.00014749,2]
[423554418,1780218639000,-732.31018883,0.00014779,2]
[423554417,1780218639000,-386.0,0.00014765,2]
[423554420,1780218639000,-600.48678497,0.00014784,2]
[423554421,1780218639000,-386.0,0.00014785,2]
[423554422,1780218639000,-732.31018883,0.00014792,2]
[423554419,1780218639000,-386.0,0.00014779,2]
[423554414,1780218639000,-386.0,0.00014753,2]
[423554423,1780218639000,-386.0,0.00014793,2]
[423554425,1780218639000,-386.0,0.00014796,2]
[423554427,1780218639000,-386.0,0.00014798,2]
[423554426,1780218639000,-386.0,0.00014797,2]
[423554428,1780218639000,-386.0,0.00014799,2]
[423554429,1780218639000,-3300.0,0.000148,5]
[423554433,1780218639000,-386.0,0.00014812,2]
[423554431,1780218639000,-386.0,0.00014802,2]
[423554394,1780218639000,-150.0,0.0001457,2]
[423554430,1780218639000,-386.0,0.00014801,2]
[423554424,1780218639000,-9056.582461,0.00014795,2]
[423554411,1780218639000,-386.0,0.00014747,2]
[423554432,1780218639000,-732.31018883,0.00014804,2]
[423554410,1780218639000,-600.48678497,0.00014747,2]
[423554413,1780218639000,-20571.63609126,0.0001475,2]
[423554395,1780218639000,-600.48678497,0.00014584,2]
[423554387,1780218639000,-20571.63609126,0.00014451,2]
[423554398,1780218639000,-255.0,0.0001461,2]